bitfinex-derivatives/quotes_BTCF0:USTF0_20251030
["timestamp","ask_amount","ask_price","bid_price","bid_amount"]
[1761801746833,0.42600118,109230.0,109220.0,0.37299]
[1761801747144,0.3608,109230.0,109220.0,0.37299]
[1761801747449,0.3608,109230.0,109200.0,0.04282]
[1761801747450,0.04486,109210.0,109200.0,0.04282]
[1761801747647,0.40566,109210.0,109200.0,0.04282]
[1761801747834,0.05848,109200.0,109190.0,0.72302]
[1761801748144,0.05848,109200.0,109190.0,0.04282]
[1761801748533,0.3608,109210.0,109200.0,0.04282]
[1761801748534,0.40566,109210.0,109200.0,0.04282]
[1761801748728,0.05848,109200.0,109190.0,0.04282]
[1761801750333,0.05848,109200.0,109190.0,0.40362]
[1761801750533,0.05848,109200.0,109190.0,0.04282]
[1761801751532,0.05848,109200.0,109190.0,0.495204]
[1761801751740,0.05848,109200.0,109190.0,0.40362]
[1761801752152,0.05848,109200.0,109190.0,0.04282]
[1761801753046,0.04486,109190.0,109180.0,0.73193454]
[1761801754343,0.04486,109190.0,109180.0,0.73393454]
[1761801755038,0.8198,109210.0,109200.0,0.02229]
[1761801755241,0.16227,109210.0,109200.0,0.41822]
[1761801755453,0.18511,109210.0,109200.0,0.41822]
[1761801755647,0.18511,109210.0,109200.0,0.04415]
[1761801756453,0.18511,109210.0,109200.0,0.40495]
[1761801757155,0.18757911,109210.0,109200.0,0.40495]
[1761801758050,0.05865,109200.0,109190.0,0.40495]
[1761801758234,0.06111911,109200.0,109190.0,0.72427]
[1761801758739,0.04797911,109200.0,109190.0,0.72427]
[1761801759152,0.00246911,109200.0,109190.0,0.72427]
[1761801759551,0.00246911,109200.0,109190.0,0.8158533]
[1761801759759,0.06111911,109200.0,109190.0,0.72423]
[1761801760646,0.06111911,109200.0,109190.0,0.40495]
[1761801760845,0.06111911,109200.0,109190.0,0.40695]
[1761801761651,0.04797911,109200.0,109190.0,0.498534]
[1761801761950,0.00246911,109200.0,109190.0,0.498534]
[1761801762444,0.00246911,109200.0,109190.0,0.5231162]
[1761801762652,0.00246911,109200.0,109190.0,0.86910048]
[1761801762850,0.00246911,109200.0,109190.0,0.5211162]
[1761801764135,0.00246911,109200.0,109190.0,0.5238762]
[1761801764344,0.00246911,109200.0,109190.0,0.87186048]
[1761801764541,0.02513911,109200.0,109190.0,0.4295322]
[1761801764847,0.00246911,109200.0,109190.0,0.5211161]
[1761801765239,0.00246911,109200.0,109190.0,1.15186038]
[1761801765440,0.00246911,109200.0,109190.0,1.16017967]
[1761801765642,0.00246911,109200.0,109190.0,1.15741967]
[1761801766441,0.00246911,109200.0,109190.0,1.16017967]
[1761801767247,0.00246911,109200.0,109190.0,1.76017967]
[1761801767559,0.00246911,109200.0,109190.0,1.80964535]
[1761801769147,0.00246911,109200.0,109190.0,0.94741967]
[1761801769544,0.04797911,109200.0,109190.0,0.91867539]
[1761801770151,0.00246911,109200.0,109190.0,1.26665967]
[1761801770561,0.06111911,109200.0,109190.0,0.82709149]
[1761801770856,0.06111911,109200.0,109190.0,0.91863469]
[1761801771241,0.06111911,109200.0,109190.0,0.50785149]
[1761801771441,0.06111911,109200.0,109190.0,0.43785149]
[1761801772457,0.42191911,109200.0,109190.0,0.03290149]
[1761801772661,0.04551,109190.0,109180.0,0.03290149]
[1761801772867,0.75429428,109190.0,109180.0,0.0245505]
[1761801773066,1.00631,109190.0,109180.0,0.0245505]
[1761801773251,1.00877911,109190.0,109180.0,0.0245505]
[1761801773853,0.41153911,109190.0,109180.0,0.0245505]
[1761801774047,0.40877911,109190.0,109180.0,0.0245505]
[1761801774262,0.40877911,109190.0,109180.0,0.05745199]
[1761801775257,0.40877911,109190.0,109180.0,0.03290149]
[1761801775654,0.75952339,109190.0,109180.0,0.05754555]
[1761801775846,0.78952339,109190.0,109170.0,0.03299087]
[1761801776061,1.08667428,109180.0,109170.0,0.03299087]
[1761801776248,1.08914339,109180.0,109170.0,0.03299087]
[1761801776449,1.12190339,109180.0,109170.0,0.03172947]
[1761801776745,0.04551,109170.0,109160.0,0.04946568]
[1761801776948,0.40631,109170.0,109160.0,0.04946568]
[1761801777357,0.40877911,109170.0,109160.0,0.10273085]
[1761801777562,0.36729911,109170.0,109160.0,0.10273085]
[1761801777952,0.36736541,109170.0,109160.0,0.10273085]
[1761801778146,0.04804541,109170.0,109160.0,0.10273085]
[1761801778357,0.04804541,109170.0,109160.0,0.77211945]
[1761801778657,0.36333541,109170.0,109160.0,0.04927905]
[1761801778955,0.40884541,109170.0,109160.0,0.04927905]
[1761801780356,0.40884541,109170.0,109160.0,0.07156905]
[1761801780751,0.40884541,109170.0,109160.0,0.04927905]
[1761801781151,0.05865,109160.0,109150.0,0.04927905]
[1761801781355,1.08926339,109160.0,109150.0,0.04927905]
[1761801781553,1.09202339,109160.0,109150.0,0.04927905]
[1761801781746,1.09211277,109160.0,109150.0,0.04927905]
[1761801782161,0.04551,109150.0,109140.0,0.04927905]
[1761801782362,0.40877911,109150.0,109140.0,0.04927905]
[1761801782679,0.40877911,109150.0,109140.0,0.09342905]
[1761801782853,0.36745911,109150.0,109140.0,0.45422905]
[1761801783052,0.36745911,109150.0,109140.0,0.09342905]
[1761801783468,0.72825911,109150.0,109140.0,0.04927905]
[1761801783873,1.08816909,109150.0,109140.0,0.04927905]
[1761801784161,1.68816909,109150.0,109140.0,0.04927905]
[1761801784360,0.05865,109140.0,109130.0,0.04927905]
[1761801784869,0.05873938,109140.0,109130.0,0.04927905]
[1761801785269,0.42200849,109140.0,109130.0,0.04927905]
[1761801785467,0.72724277,109140.0,109120.0,0.04927905]
[1761801785663,1.07717428,109130.0,109120.0,0.04927905]
[1761801786365,0.72889911,109130.0,109120.0,0.04927905]
[1761801786575,0.04845911,109130.0,109120.0,0.45310905]
[1761801786770,0.04845911,109130.0,109120.0,0.40383]
[1761801787777,0.04845911,109130.0,109120.0,0.50459169]
[1761801787965,0.04845911,109130.0,109120.0,0.05214909]
[1761801788272,0.04845911,109130.0,109120.0,0.0921624]
[1761801788774,0.04845911,109130.0,109120.0,0.0491324]
[1761801788977,0.76000339,109130.0,109120.0,0.0491324]
[1761801789274,0.40925911,109130.0,109120.0,0.0491324]
[1761801789473,0.75724339,109130.0,109120.0,0.0491324]
[1761801789668,0.05923,109120.0,109110.0,0.0492042]
[1761801789871,0.37922078,109120.0,109110.0,0.0492042]
[1761801790081,0.37922078,109120.0,109110.0,0.0704142]
[1761801790277,0.37922078,109120.0,109110.0,0.0922342]
[1761801790478,0.38168989,109120.0,109110.0,0.0922342]
[1761801790772,0.38168989,109120.0,109110.0,0.0431018]
[1761801791166,0.38168989,109120.0,109110.0,0.09223643]
[1761801791366,0.52128989,109120.0,109110.0,0.39108608]
[1761801791567,0.52124989,109120.0,109110.0,0.0431018]
[1761801792171,0.52124989,109120.0,109110.0,0.05248364]
[1761801792572,0.52124989,109120.0,109110.0,0.41328364]
[1761801793170,0.52124989,109120.0,109110.0,0.05248364]
[1761801793366,0.52124989,109120.0,109110.0,0.41328364]
[1761801793571,0.52124989,109120.0,109110.0,0.05248364]
[1761801793878,0.52124989,109120.0,109110.0,0.0442718]
[1761801794666,0.20136989,109120.0,109110.0,0.0442718]
[1761801794876,0.20136989,109120.0,109110.0,0.05327388]
[1761801795784,0.20136989,109120.0,109110.0,0.0442718]
[1761801796180,0.20136989,109120.0,109110.0,0.4050718]
[1761801797278,0.20136989,109120.0,109110.0,7.18e-05]
[1761801801382,0.20136989,109120.0,109110.0,0.0442718]
[1761801801583,0.20136989,109120.0,109110.0,0.4050718]
[1761801801784,0.06176989,109120.0,109110.0,0.4050718]
[1761801803693,0.06176989,109120.0,109110.0,0.4967228]
[1761801804892,0.04889989,109120.0,109110.0,0.4967228]
[1761801805188,0.00253989,109120.0,109110.0,1.40694708]
[1761801805393,0.37754,109140.0,109130.0,0.1358342]
[1761801805592,0.37754,109140.0,109130.0,0.405]
[1761801805790,0.04492,109130.0,109120.0,0.4966374]
[1761801806192,0.04492,109130.0,109120.0,0.5094874]
[1761801806394,0.04492,109130.0,109120.0,0.0442]
[1761801806793,0.05787,109120.0,109110.0,0.8159672]
[1761801807398,0.05787,109120.0,109110.0,0.9479672]
[1761801807588,0.05787,109120.0,109110.0,0.8179672]
[1761801807783,0.1396,109130.0,109120.0,0.1139926]
[1761801807988,0.18469,109130.0,109120.0,0.4963326]
[1761801808700,0.18469,109130.0,109120.0,0.71714107]
[1761801808888,0.16186,109130.0,109120.0,0.71714107]
[1761801809490,0.1396,109130.0,109120.0,0.71714107]
[1761801809986,0.18469,109130.0,109120.0,0.4963326]
[1761801810186,0.1396,109130.0,109120.0,0.84714107]
[1761801810800,0.1396,109130.0,109120.0,0.71714107]
[1761801811604,0.1396,109130.0,109120.0,0.71914107]
[1761801812192,0.1396,109130.0,109120.0,0.71714107]
[1761801812707,0.1396,109130.0,109120.0,0.84714107]
[1761801812901,0.1396,109130.0,109120.0,0.71714107]
[1761801813900,0.1396,109130.0,109120.0,1.43714107]
[1761801814096,0.1396,109130.0,109120.0,1.58914107]
[1761801816012,0.06798032,109150.0,109140.0,0.0454]
[1761801816210,0.06798032,109150.0,109140.0,0.4062]
[1761801816904,0.08103032,109150.0,109140.0,0.4062]
[1761801817610,0.05591,109140.0,109130.0,0.36471]
[1761801817800,0.08051467,109140.0,109130.0,0.04527]
[1761801818796,0.05591,109130.0,109110.0,0.39364249]
[1761801819001,0.05591,109120.0,109110.0,7.18e-05]
[1761801819199,0.05591,109120.0,109110.0,0.3830918]
[1761801819402,0.05591,109120.0,109110.0,0.0453418]
[1761801819602,0.37535,109120.0,109110.0,0.0222918]
[1761801819803,0.37535,109120.0,109110.0,7.18e-05]
[1761801820010,0.73615,109120.0,109110.0,0.0010718]
[1761801820512,0.94410847,109120.0,109110.0,0.0010718]
[1761801820899,0.94410847,109120.0,109110.0,0.0040718]
[1761801821800,0.94410847,109120.0,109110.0,0.0010718]
[1761801822415,0.94410847,109120.0,109110.0,7.18e-05]
[1761801823223,0.94410847,109120.0,109110.0,0.03284249]
[1761801825210,0.96410847,109120.0,109110.0,0.03284249]
[1761801825406,0.96686847,109120.0,109110.0,0.03284249]
[1761801825620,0.96686847,109120.0,109110.0,7.18e-05]
[1761801826821,0.96410847,109120.0,109110.0,7.18e-05]
[1761801828823,0.73615,109120.0,109110.0,0.0453418]
[1761801829018,0.73615,109120.0,109110.0,0.03284249]
[1761801829322,0.41671,109120.0,109110.0,0.07811249]
[1761801829522,0.37539,109120.0,109110.0,0.43891249]
[1761801829823,0.37539,109120.0,109110.0,0.07811249]
[1761801832125,0.37539,109120.0,109110.0,0.12726042]
[1761801835327,0.37539,109120.0,109110.0,0.09448973]
[1761801835930,0.73619,109120.0,109110.0,0.12745398]
[1761801836119,0.73619,109120.0,109110.0,0.09448973]
[1761801839331,0.73619,109120.0,109110.0,0.04921973]
[1761801839719,0.73619,109120.0,109110.0,0.07143973]
[1761801840025,0.73619,109120.0,109110.0,0.09448973]
[1761801840529,0.73619,109120.0,109110.0,0.03303684]
[1761801840530,0.96414847,109120.0,109110.0,0.03303684]
[1761801841617,0.19551,109110.0,109090.0,0.3608]
[1761801841820,0.72294847,109100.0,109090.0,0.3608]
[1761801842020,0.51499,109100.0,109090.0,0.3608]
[1761801842726,0.51499,109100.0,109090.0,0.38302]
[1761801843026,0.5150804,109100.0,109090.0,0.38302]
[1761801844431,0.53610189,109100.0,109090.0,0.40607]
[1761801844735,0.05792,109090.0,109080.0,0.62321496]
[1761801844925,0.07894149,109090.0,109080.0,0.41525649]
[1761801845328,0.07694149,109090.0,109080.0,0.41525649]
[1761801845727,0.05592,109090.0,109080.0,0.62321496]
[1761801845925,0.05592,109090.0,109080.0,0.62421496]
[1761801846128,0.05592,109090.0,109080.0,0.62721496]
[1761801846834,0.04252,109090.0,109080.0,0.63969496]
[1761801847230,0.05592,109090.0,109080.0,0.63969496]
[1761801848734,0.1619404,109100.0,109090.0,0.05801]
[1761801848935,0.18293768,109100.0,109090.0,0.62676847]
[1761801849138,0.18293768,109100.0,109090.0,0.71843627]
[1761801849139,0.1396904,109100.0,109090.0,0.71843627]
[1761801849734,0.1619404,109100.0,109090.0,0.71843627]
[1761801850236,0.1396904,109100.0,109090.0,0.71843627]
[1761801850631,0.1396904,109100.0,109090.0,1.03791627]
[1761801850827,0.1619404,109100.0,109090.0,1.03791627]
[1761801851033,0.1842104,109100.0,109090.0,0.94624847]
[1761801851228,0.1976104,109100.0,109090.0,0.62776847]
[1761801851428,0.1842104,109100.0,109090.0,0.58623515]
[1761801851640,0.38520515,109100.0,109090.0,0.40696]
[1761801851830,0.38520515,109100.0,109090.0,0.57338515]
[1761801853033,0.38520515,109100.0,109090.0,0.40696]
[1761801853236,0.38520515,109100.0,109090.0,0.57338515]
[1761801853442,0.21878,109100.0,109090.0,0.57338515]
[1761801853631,0.38520515,109100.0,109090.0,0.57338515]
[1761801853841,0.21878,109100.0,109090.0,0.57338515]
[1761801854040,0.38520515,109100.0,109090.0,0.57338515]
[1761801854547,0.21878,109100.0,109090.0,0.57338515]
[1761801854740,0.38520515,109100.0,109090.0,0.57338515]
[1761801855445,0.21878,109100.0,109090.0,0.40696]
[1761801856644,0.21878,109100.0,109090.0,0.38405]
[1761801857645,0.28723817,109100.0,109090.0,0.001]
[1761801860543,0.64803817,109100.0,109090.0,0.001]
[1761801860741,0.64804141,109100.0,109090.0,0.001]
[1761801861352,0.64804141,109100.0,109080.0,0.3608]
[1761801861545,0.58445817,109090.0,109080.0,0.3608]
[1761801861945,0.05692,109080.0,109070.0,0.40522]
[1761801862347,0.05692,109080.0,109070.0,0.41427579]
[1761801862943,0.05700948,109080.0,109070.0,0.0213]
[1761801863144,0.05692,109070.0,109060.0,0.45456546]
[1761801863352,0.58341817,109070.0,109060.0,0.45456546]
[1761801863951,0.58141817,109070.0,109060.0,0.45456546]
[1761801864251,0.05692,109060.0,109050.0,0.45456546]
[1761801864450,0.26505951,109060.0,109050.0,0.45456546]
[1761801864652,0.26405951,109060.0,109050.0,0.43144546]
[1761801864857,0.05600134,109060.0,109050.0,0.45456546]
[1761801865045,0.26405951,109060.0,109050.0,0.41014546]
[1761801865239,0.05600134,109060.0,109050.0,0.45456546]
[1761801865646,0.37548134,109060.0,109050.0,0.45456546]
[1761801865841,0.37548134,109060.0,109050.0,0.41114546]
[1761801866046,0.95373016,109060.0,109050.0,0.001]
[1761801866346,1.54433951,109060.0,109050.0,0.002]
[1761801866939,0.94709951,109060.0,109050.0,0.002]
[1761801867140,0.05692,109050.0,109030.0,0.07065553]
[1761801867348,0.94534857,109040.0,109030.0,0.07065553]
[1761801867542,0.94534857,109040.0,109030.0,0.02131007]
[1761801867543,1.30890857,109040.0,109030.0,0.02131007]
[1761801867750,1.30614857,109040.0,109030.0,0.02131007]
[1761801868345,1.30614857,109040.0,109030.0,0.02331007]
[1761801868745,0.98666857,109040.0,109030.0,0.02331007]
[1761801869048,0.94538857,109040.0,109030.0,0.07265553]
[1761801869250,0.7373304,109040.0,109030.0,0.07265553]
[1761801870046,0.7373304,109040.0,109030.0,0.07565553]
[1761801872958,1.08928668,109040.0,109030.0,0.07565553]
[1761801873161,1.08652668,109040.0,109030.0,0.07565553]
[1761801874263,0.7373304,109040.0,109030.0,0.07565553]
[1761801874856,0.7373304,109040.0,109030.0,0.02631007]
[1761801875256,0.75869069,109040.0,109030.0,0.04812007]
[1761801875456,0.75869069,109040.0,109030.0,0.07005007]
[1761801875457,0.57877069,109040.0,109030.0,0.07005007]
[1761801875761,0.36269069,109040.0,109030.0,0.44388007]
[1761801875965,0.38466069,109040.0,109030.0,0.44388007]
[1761801876265,0.02145069,109040.0,109030.0,0.53559857]
[1761801876462,0.06485069,109040.0,109030.0,0.44388007]
[1761801878260,9.04e-05,109040.0,109030.0,0.53559867]
[1761801879161,0.0434904,109040.0,109030.0,0.44388007]
[1761801879661,0.06499589,109040.0,109030.0,0.44388007]
[1761801879862,0.04302589,109040.0,109030.0,1.04388007]
[1761801880054,0.0215204,109040.0,109030.0,1.04388007]
[1761801880253,0.0434904,109040.0,109030.0,1.04388007]
[1761801880453,0.06499319,109040.0,109030.0,1.04388007]
[1761801881159,0.0434904,109040.0,109030.0,1.04388007]
[1761801881958,0.02158436,109040.0,109030.0,0.88755495]
[1761801882258,0.1396,109060.0,109040.0,0.0917053]
[1761801882464,0.02149344,109060.0,109050.0,0.5080221]
[1761801883055,0.02149344,109060.0,109050.0,0.41632]
[1761801883465,0.06489344,109060.0,109050.0,0.41632]
[1761801883958,0.07832344,109060.0,109050.0,0.40554]
[1761801884566,0.42751972,109060.0,109050.0,0.04474]
[1761801884868,0.81292512,109060.0,109050.0,0.001]
[1761801885266,0.85833159,109060.0,109050.0,0.001]
[1761801885458,0.0434,109040.0,109030.0,0.02131007]
[1761801885657,0.38445344,109040.0,109030.0,0.02131007]
[1761801886059,0.38445344,109040.0,109030.0,0.06505007]
[1761801886767,0.38445344,109040.0,109030.0,0.06705007]
[1761801887360,0.02149344,109040.0,109030.0,0.42785007]
[1761801887560,0.36296,109050.0,109040.0,0.05677]
[1761801887768,0.38443704,109050.0,109040.0,0.41757]
[1761801888455,0.38443704,109050.0,109040.0,0.40454]
[1761801889065,0.38443704,109050.0,109040.0,0.04374]
[1761801889265,0.40891177,109050.0,109040.0,0.04374]
[1761801889571,0.38443704,109050.0,109040.0,0.04574]
[1761801889757,0.38443704,109050.0,109040.0,0.05877]
[1761801889957,0.38443704,109050.0,109040.0,0.41957]
[1761801890159,0.02147704,109050.0,109040.0,0.41957]
[1761801891563,0.02147704,109050.0,109040.0,0.5112802]
[1761801892273,0.02147704,109050.0,109040.0,0.41957]
[1761801892663,0.04290704,109050.0,109040.0,0.41957]
[1761801893973,0.06487704,109050.0,109040.0,0.41957]
[1761801894175,0.04290704,109050.0,109040.0,0.41957]
[1761801895670,0.18250704,109050.0,109040.0,0.41957]
[1761801896069,0.16107704,109050.0,109040.0,0.5112803]
[1761801896570,0.18250704,109050.0,109040.0,0.41957]
[1761801896770,0.16107704,109050.0,109040.0,0.41957]
[1761801897159,0.18250704,109050.0,109040.0,0.41957]
[1761801897673,0.18250704,109050.0,109040.0,0.05877]
[1761801897873,0.18250704,109050.0,109040.0,0.41957]
[1761801898256,0.16107704,109050.0,109040.0,0.5112803]
[1761801898576,0.16107704,109050.0,109040.0,0.86323658]
[1761801899074,0.16107704,109050.0,109040.0,0.86047658]
[1761801899372,0.16107704,109050.0,109040.0,0.5112803]
[1761801899574,0.16107704,109050.0,109040.0,0.86047658]
[1761801899871,0.16107704,109050.0,109040.0,0.5112803]
[1761801900775,0.16107704,109050.0,109040.0,0.41957]
[1761801901078,0.18555177,109050.0,109040.0,0.8308402]
[1761801901471,0.16107704,109050.0,109040.0,1.18003648]
[1761801901870,0.02447473,109060.0,109050.0,0.1472218]
[1761801902060,0.22101788,109070.0,109060.0,0.1484634]
[1761801902061,0.17224647,109070.0,109060.0,0.1484634]
[1761801902262,0.19643,109070.0,109060.0,0.04374]
[1761801903383,0.22907647,109070.0,109060.0,0.04374]
[1761801904880,0.05652,109060.0,109050.0,0.72573]
[1761801905185,0.05652,109060.0,109050.0,0.72473]
[1761801905585,0.05652,109060.0,109050.0,0.73651]
[1761801905786,0.08916647,109060.0,109050.0,0.73651]
[1761801906282,0.08916647,109060.0,109050.0,0.73751]
[1761801906884,0.07608647,109060.0,109050.0,0.41787]
[1761801907383,0.21568647,109060.0,109050.0,0.41787]
[1761801907785,0.22876647,109060.0,109050.0,0.41787]
[1761801908476,0.22876647,109060.0,109050.0,0.40609]
[1761801909197,0.22876647,109060.0,109050.0,0.04529]
[1761801911300,0.54828647,109060.0,109050.0,0.04529]
[1761801913198,0.40868647,109060.0,109050.0,0.04529]
[1761801914000,0.42992385,109060.0,109050.0,0.04529]
[1761801916095,0.39727738,109060.0,109050.0,0.04529]
[1761801918006,0.38419738,109060.0,109050.0,0.58444382]
[1761801918501,0.06467738,109060.0,109050.0,0.58444382]
[1761801919107,0.20427738,109060.0,109050.0,0.58444382]
[1761801920304,0.18304,109060.0,109050.0,0.58444382]
[1761801920505,0.20433026,109060.0,109050.0,0.58444382]
[1761801921207,0.21822026,109060.0,109050.0,0.58444382]
[1761801922808,0.7725679,109060.0,109050.0,0.001]
[1761801923005,0.60599408,109060.0,109050.0,0.001]
[1761801923409,0.63875408,109060.0,109050.0,0.001]
[1761801923912,0.60875408,109060.0,109050.0,0.001]
[1761801925209,0.60599408,109060.0,109050.0,0.001]
[1761801925811,1.20599408,109060.0,109050.0,0.001]
[1761801926114,1.20875408,109060.0,109050.0,0.001]
[1761801926310,1.20599408,109060.0,109050.0,0.001]
[1761801926507,1.20875408,109060.0,109050.0,0.001]
[1761801926711,1.22875408,109060.0,109050.0,0.001]
[1761801927105,1.22599408,109060.0,109050.0,0.001]
[1761801928913,0.05769,109040.0,109030.0,0.11496553]
[1761801929113,0.05769,109040.0,109030.0,0.07065553]
[1761801929114,0.54378382,109040.0,109030.0,0.07065553]
[1761801929317,0.71055354,109040.0,109030.0,0.07065553]
[1761801929817,0.71055354,109040.0,109030.0,0.02131007]
[1761801930415,0.71055354,109040.0,109030.0,0.02331007]
[1761801930627,0.71055354,109040.0,109030.0,0.02631007]
[1761801930912,1.10168918,109040.0,109030.0,0.02631007]
[1761801931102,0.05769,109030.0,109020.0,0.04934546]
[1761801931306,0.05769,109020.0,109010.0,0.04934546]
[1761801931513,1.07135354,109020.0,109010.0,0.04934546]
[1761801932505,1.07142167,109020.0,109010.0,0.04934546]
[1761801933010,1.09142167,109020.0,109010.0,0.04934546]
[1761801933408,0.96852229,109020.0,109010.0,0.04934546]
[1761801933717,0.05769,109000.0,108990.0,0.44808846]
[1761801933906,0.36839441,109000.0,108990.0,0.07886656]
[1761801934105,0.36839441,109000.0,108990.0,0.04431]
[1761801934411,0.05769,108990.0,108980.0,0.47984336]
[1761801936117,0.05769,108990.0,108980.0,0.4143349]
[1761801936318,0.05769,108990.0,108980.0,0.4272849]
[1761801936617,0.05669,108990.0,108980.0,0.63572906]
[1761801937307,0.043,108990.0,108980.0,0.63572906]
[1761801937702,0.05665,108990.0,108980.0,0.3700249]
[1761801937909,0.05744,108980.0,108970.0,0.02259]
[1761801938104,0.04379,108970.0,108960.0,0.08846371]
[1761801938304,0.41831546,108970.0,108960.0,0.11136371]
[1761801938509,0.41831546,108970.0,108960.0,1.81980787]
[1761801938725,0.41831546,108970.0,108960.0,1.61136371]
[1761801939109,0.41731546,108970.0,108960.0,1.61136371]
[1761801940615,0.05651546,108970.0,108960.0,1.62351371]
[1761801940921,7.546e-05,108970.0,108960.0,2.19275787]
[1761801941217,7.546e-05,108970.0,108960.0,2.51235787]
[1761801941615,7.546e-05,108970.0,108960.0,2.61320917]
[1761801941813,0.36339,108990.0,108980.0,0.05197]
[1761801942009,0.36208628,108990.0,108980.0,0.41277]
[1761801942415,0.36208628,108990.0,108980.0,0.62121416]
[1761801943020,0.36408628,108990.0,108980.0,0.62121416]
[1761801943222,0.36708628,108990.0,108980.0,0.62121416]
[1761801944421,0.37873628,108990.0,108980.0,0.41277]
[1761801944623,0.06044,108990.0,108980.0,0.05197]
[1761801945019,0.05944,108990.0,108980.0,0.05197]
[1761801945617,0.05944,108990.0,108980.0,0.04549]
[1761801947726,0.05944,108990.0,108980.0,0.05844]
[1761801952632,0.05944,108990.0,108980.0,0.62768416]
[1761801952633,0.002,108990.0,108980.0,0.62768416]
[1761801952827,0.02333,108990.0,108980.0,0.62768416]
[1761801953033,0.04579,108990.0,108980.0,0.62768416]
[1761801953227,0.04579,108990.0,108980.0,0.41924]
[1761801953527,0.21255932,108990.0,108980.0,0.58600932]
[1761801953728,0.04579,108990.0,108980.0,0.75277864]
[1761801953925,0.002,108990.0,108980.0,1.16417884]
[1761801954525,0.002,108990.0,108980.0,1.16693884]
[1761801954831,0.002,108990.0,108980.0,1.16417884]
[1761801955034,0.04579,108990.0,108980.0,1.07241864]
[1761801955422,0.04579,108990.0,108980.0,0.90564932]
[1761801955730,0.04479,108990.0,108980.0,1.07241864]
[1761801956133,0.02233,108990.0,108980.0,1.16417884]
[1761801956532,0.02133,108990.0,108980.0,1.16417884]
[1761801956725,0.02233,108990.0,108980.0,1.16417884]
[1761801957432,0.02433,108990.0,108980.0,1.16417884]
[1761801957631,0.02433,108990.0,108980.0,1.07241864]
[1761801957834,0.19109932,108990.0,108980.0,0.99740962]
[1761801958530,0.16976932,108990.0,108980.0,0.99740962]
[1761801958926,0.003,108990.0,108980.0,0.99740962]
[1761801959222,0.003,108990.0,108980.0,1.59740962]
[1761801959731,0.003,108990.0,108980.0,1.59736962]
[1761801960536,0.21355932,108990.0,108980.0,0.99736962]
[1761801960840,0.21355932,108990.0,108980.0,0.90560932]
[1761801961427,0.21355932,108990.0,108980.0,0.73884]
[1761801961629,0.21355932,108990.0,108980.0,0.99736962]
[1761801962728,0.003,108990.0,108980.0,1.16413894]
[1761801962936,0.003,108990.0,108980.0,1.41413894]
[1761801963137,0.58707458,109020.0,109010.0,0.02259]
[1761801963331,0.09026425,109020.0,109010.0,0.22486932]
[1761801963533,0.02194899,109020.0,109010.0,0.67740452]
[1761801964629,0.02194899,109020.0,109010.0,0.68660148]
[1761801964836,0.06562899,109020.0,109010.0,0.59486628]
[1761801965043,0.77392763,109020.0,109010.0,0.06729696]
[1761801965236,0.79845289,109020.0,109010.0,0.02259]
[1761801965531,0.79845289,109020.0,109000.0,0.36547]
[1761801965532,0.05839,109010.0,109000.0,0.36495]
[1761801965721,0.08033899,109010.0,109000.0,0.36495]
[1761801965921,0.08033899,109010.0,109000.0,0.37884]
[1761801966137,0.08033899,109010.0,109000.0,0.73964]
[1761801966329,0.08033899,109010.0,109000.0,0.04535]
[1761801967333,0.28877599,109010.0,109000.0,0.04535]
[1761801967836,0.28877599,109010.0,109000.0,0.05473536]
[1761801968025,0.28877599,109010.0,109000.0,0.06287536]
[1761801968231,0.06837899,109010.0,109000.0,0.06287536]
[1761801968529,0.07037899,109010.0,109000.0,0.06287536]
[1761801969037,0.08433899,109010.0,109000.0,0.06287536]
[1761801969433,0.07037899,109010.0,109000.0,0.06287536]
[1761801969631,0.02594899,109010.0,109000.0,0.42367536]
[1761801969826,0.004,109010.0,109000.0,0.72385576]
[1761801970235,0.004,109010.0,109000.0,1.61661576]
[1761801970740,0.004,109010.0,109000.0,1.61385576]
[1761801971133,0.004,109010.0,109000.0,1.61661576]
[1761801971329,0.004,109010.0,109000.0,1.01661576]
[1761801971530,1.22034347,109050.0,109040.0,0.05924]
[1761801971531,0.44371526,109050.0,109040.0,0.05924]
[1761801971840,0.44371526,109050.0,109040.0,0.42004]
[1761801971841,0.09093152,109050.0,109040.0,0.42004]
[1761801972335,0.09093152,109050.0,109040.0,0.05924]
[1761801972535,0.10489152,109050.0,109040.0,0.05924]
[1761801973140,0.10689152,109050.0,109040.0,0.05924]
[1761801973343,0.09293152,109050.0,109040.0,0.42004]
[1761801973726,0.00044686,109050.0,109040.0,0.42004]
[1761801973939,0.00044686,109050.0,109040.0,0.7201867]
[1761801974337,0.00044686,109050.0,109040.0,0.72953862]
[1761801974637,0.00244686,109050.0,109040.0,0.72953862]
[1761801974836,0.002,109050.0,109040.0,0.72953862]
[1761801975040,0.002,109050.0,109040.0,0.63782892]
[1761801975437,0.04640526,109060.0,109050.0,0.0212]
[1761801975640,0.06963526,109060.0,109050.0,0.73695]
[1761801976146,0.08361526,109060.0,109050.0,0.73695]
[1761801976445,0.06963526,109060.0,109050.0,0.73695]
[1761801977550,0.04640526,109070.0,109060.0,0.05663]
[1761801977843,0.16412526,109070.0,109060.0,0.41743]
[1761801978047,0.16412526,109070.0,109060.0,0.625867]
[1761801978238,0.1396,109070.0,109060.0,0.625867]
[1761801978845,0.1426,109070.0,109060.0,0.625867]
[1761801979052,0.43465226,109070.0,109060.0,0.04393]
[1761801979240,0.22621526,109070.0,109060.0,0.36337]
[1761801979440,0.22521526,109070.0,109060.0,0.36337]
[1761801979641,0.21023526,109070.0,109060.0,0.37607]
[1761801979850,0.21023526,109070.0,109060.0,0.73687]
[1761801981156,0.22421526,109070.0,109060.0,0.36337]
[1761801981341,0.22421526,109070.0,109060.0,0.04393]
[1761801982252,0.22421526,109070.0,109060.0,0.05663]
[1761801982253,0.16512526,109070.0,109060.0,0.05663]
[1761801982456,0.16512526,109070.0,109060.0,0.41743]
[1761801982638,0.16512526,109070.0,109060.0,0.625867]
[1761801983151,0.16512526,109070.0,109060.0,0.41743]
[1761801983152,0.21023526,109070.0,109060.0,0.41743]
[1761801983351,0.16512526,109070.0,109060.0,0.41743]
[1761801983649,0.16512526,109070.0,109060.0,0.5091229]
[1761801984655,0.1406,109070.0,109060.0,0.5091229]
[1761801984837,0.1396,109070.0,109060.0,0.5091229]
[1761801985250,0.1396,109070.0,109060.0,0.41943]
[1761801985460,0.20923526,109070.0,109060.0,0.41943]
[1761801985660,0.22321526,109070.0,109060.0,0.41943]
[1761801985861,0.2450367,109070.0,109060.0,0.41943]
[1761801986261,0.2310567,109070.0,109060.0,0.41943]
[1761801986459,0.20653144,109070.0,109060.0,0.41943]